fUSD/lending_fUSD_20260203
["ID","MTS","AMOUNT","RATE_DAILY","PERIOD"]
[404461938,1770157415210,-246.23,0.00015068,2]
[404461939,1770157415250,-1664.74,0.00015068,2]
[404461940,1770157415294,-773.4,0.00015068,2]
[404461941,1770157415336,-900.0,0.00015068,2]
[404461942,1770157415379,-559.24,0.00015068,2]
[404461943,1770157415421,-1293.912846,0.00015068,2]
[404461944,1770157415464,-1293.912846,0.00015068,2]
[404461945,1770157415511,-1293.912846,0.00015068,2]
[404461946,1770157415557,-1293.912846,0.00015068,2]
[404461947,1770157415601,-1293.912846,0.00015068,2]
[404461948,1770157415645,-1293.912846,0.00015068,2]
[404461949,1770157415688,-1293.912846,0.00015068,2]
[404461950,1770157415732,-1293.912846,0.00015068,2]
[404461951,1770157415773,-448.16,0.00015144,2]
[404461952,1770157415812,-2000.0,0.000152,2]
[404461953,1770157415849,-1448.54,0.0001531,2]
[404461954,1770157415885,-3529.0,0.0001531,2]
[404461955,1770157415923,-246.23,0.00015342,2]
[404461956,1770157415962,-773.4,0.00015342,2]
[404461957,1770157416002,-4500.0,0.000154,2]
[404461958,1770157416043,-259.76,0.00015569,2]
[404461959,1770157416081,-2000.0,0.000156,2]
[404461960,1770157416120,-246.23,0.00015616,2]
[404461961,1770157416156,-6713.7144773,0.00015741,2]
[404461962,1770157416193,-559.24,0.00015753,2]
[404461963,1770157416230,-1000.0,0.00015843,2]
[404461964,1770157416265,-19608.0,0.00015857,2]
[404461965,1770157416301,-246.23,0.0001589,2]
[404461966,1770157416337,-6365.0,0.00015916,2]
[404461967,1770157416372,-1000.0,0.00015918,2]
[404461968,1770157416410,-5000.0,0.00015948,2]
[404461969,1770157416448,-2000.0,0.00016,2]
[404461970,1770157416486,-9250.46066955,0.00016116,2]
[404461976,1770157574565,6752.87659499,0.000209,30]
[404462167,1770157831387,-1200.0,8.884e-05,2]
[404462168,1770157831398,-131.26324519,8.884e-05,2]
[404462169,1770157831409,-18.73675481,8.884e-05,2]
[404462171,1770157831418,-250.0,8.884e-05,2]
[404462173,1770157831427,-139.52069839,8.885e-05,2]
[404462175,1770157831439,-323.3292545,8.885e-05,2]
[404462178,1770157831455,-1013.08682692,8.885e-05,2]
[404462179,1770157831480,-7631.69981,8.885e-05,2]
[404462180,1770157831492,-607.56498033,8.885e-05,2]
[404462181,1770157831535,-293.48857706,8.885e-05,2]
[404462182,1770157831547,-1691.67677193,8.885e-05,2]
[404462183,1770157831596,-947.96197807,8.885e-05,2]
[404462184,1770157831608,-2424.42970357,8.885e-05,2]
[404462185,1770157831619,-558.76267928,8.885e-05,2]
[404462186,1770157831657,-3444.2674592,8.885e-05,2]
[404462195,1770157837457,-14216.55996075,8.885e-05,2]
[404462196,1770157837466,-10000.0,8.885e-05,2]
[404462197,1770157837476,-2500.0,8.885e-05,2]
[404462198,1770157837485,-250.0,9.528e-05,2]
[404462199,1770157837495,-1680.0,9.772e-05,2]
[404462200,1770157837504,-255.0,9.772e-05,2]
[404462201,1770157837513,-250.0,9.772e-05,2]
[404462202,1770157837522,-151.0,0.0001,2]
[404462203,1770157837531,-200.0,0.0001,2]
[404462204,1770157837541,-151.0,0.0001,2]
[404462205,1770157837550,-151.0,0.0001,2]
[404462206,1770157837559,-151.0,0.0001,2]
[404462207,1770157837569,-151.0,0.0001,2]
[404462208,1770157837578,-151.0,0.0001,2]
[404462209,1770157837587,-500.0,0.0001,2]
[404462210,1770157837596,-151.0,0.0001,2]
[404462211,1770157837606,-500.0,0.0001,2]
[404462212,1770157837616,-151.0,0.0001,2]
[404462213,1770157837628,-500.0,0.0001,2]
[404462214,1770157837638,-151.0,0.0001,2]
[404462215,1770157837647,-500.0,0.0001,2]
[404462216,1770157837656,-151.0,0.0001,2]
[404462217,1770157837667,-500.0,0.0001,2]
[404462218,1770157837677,-151.0,0.0001,2]
[404462219,1770157837687,-500.0,0.0001,2]
[404462220,1770157837698,-500.0,0.0001,2]
[404462221,1770157837709,-500.0,0.0001,2]
[404462223,1770157837718,-500.0,0.0001,2]
[404462225,1770157837728,-500.0,0.0001,2]
[404462226,1770157837737,-500.0,0.0001,2]
[404462227,1770157837747,-151.0,0.0001,2]
[404462228,1770157837756,-151.0,0.0001,2]
[404462229,1770157837766,-151.0,0.0001,2]
[404462230,1770157837775,-151.0,0.0001,2]
[404462231,1770157837785,-151.0,0.0001,2]
[404462232,1770157837794,-151.0,0.0001,2]
[404462233,1770157837804,-151.0,0.0001,2]
[404462234,1770157837814,-262.47393133,0.0001,2]
[404462235,1770157837825,-500.0,0.0001,2]
[404462236,1770157837836,-200.0,0.0001,2]
[404462237,1770157837846,-1934.44747512,0.0001,2]
[404462238,1770157837855,-2739.81280514,0.0001,2]
[404462239,1770157837865,-22830.03957083,0.0001,2]
[404462240,1770157837876,-260.23313591,0.000101,2]
[404462241,1770157837886,-268.69527082,0.000107,2]
[404462242,1770157837895,-500.0,0.00010722,2]
[404462243,1770157837904,-497.49589099,0.00010723,2]
[404462244,1770157837913,-1312.89952747,0.00010723,2]
[404462245,1770157837923,-2316.11038942,0.00010723,2]
[404462246,1770157837933,-412.0,0.0001075,2]
[404462247,1770157837942,-331.0,0.0001075,2]
[404462248,1770157837952,-1029.43598608,0.000108,2]
[404462249,1770157837961,-500.0,0.00010996,2]
[404462250,1770157837970,-500.0,0.00011017,2]
[404462251,1770157837980,-500.0,0.00011017,2]
[404462252,1770157837990,-500.0,0.0001127,2]
[404462253,1770157837999,-1000.0,0.00011309,2]
[404462254,1770157838008,-15886.46714073,0.0001142,2]
[404462255,1770157838017,-151.992685,0.00011468,2]
[404462256,1770157838027,-500.0,0.00011544,2]
[404462257,1770157838036,-727.81084573,0.00011565,2]
[404462258,1770157838045,-250.0,0.00012296,2]
[404462259,1770157838055,-115255.80789483,0.0001269,2]
[404462260,1770157838064,-1000.0,0.00012723,2]
[404462261,1770157838074,-5613.98559882,0.00013,2]
[404462262,1770157838084,-4434.56277461,0.00013,2]
[404462263,1770157838094,-268.89,0.00013023,2]
[404462264,1770157838104,-5354.65944007,0.0001305,2]
[404462265,1770157838114,-1852.42,0.00013306,2]
[404462266,1770157838124,-1000.0,0.000135,2]
[404462267,1770157838134,-3141.18,0.0001362,2]
[404462268,1770157838143,-160.0,0.00013672,2]
[404462269,1770157838152,-502.5925885,0.00013698,2]
[404462271,1770157838162,-4375.3625532,0.00013698,2]
[404462272,1770157838171,-1244.42,0.00013698,2]
[404462273,1770157838180,-1244.42,0.00013698,2]
[404462274,1770157838189,-1244.42,0.00013698,2]
[404462275,1770157838198,-1244.42,0.00013698,2]
[404462276,1770157838208,-1244.42,0.00013698,2]
[404462277,1770157838217,-1244.42,0.00013698,2]
[404462278,1770157838227,-1244.42,0.00013698,2]
[404462279,1770157838236,-1244.42,0.00013698,2]
[404462280,1770157838245,-1244.42,0.00013698,2]
[404462281,1770157838254,-1244.42,0.00013698,2]
[404462282,1770157838264,-1244.42,0.00013698,2]
[404462283,1770157838273,-1244.42,0.00013698,2]
[404462284,1770157838284,-1244.42,0.00013698,2]
[404462285,1770157838294,-1244.42,0.00013698,2]
[404462286,1770157838303,-1244.42,0.00013698,2]
[404462287,1770157838312,-1244.42,0.00013698,2]
[404462288,1770157838322,-1244.42,0.00013698,2]
[404462289,1770157838331,-1244.42,0.00013698,2]
[404462290,1770157838341,-1244.42,0.00013698,2]
[404462291,1770157838350,-1244.42,0.00013698,2]
[404462292,1770157838360,-1244.42,0.00013698,2]
[404462293,1770157838370,-1244.42,0.00013698,2]
[404462294,1770157838380,-1244.42,0.00013698,2]
[404462295,1770157838390,-1244.55366875,0.00013698,2]
[404462296,1770157838399,-500.0,0.00013698,2]
[404462297,1770157838408,-500.0,0.00013698,2]
[404462298,1770157838418,-500.0,0.00013698,2]
[404462299,1770157838427,-500.0,0.00013698,2]
[404462300,1770157838436,-500.0,0.00013698,2]
[404462301,1770157838446,-500.0,0.00013698,2]
[404462302,1770157838455,-500.0,0.00013698,2]
[404462303,1770157838465,-500.0,0.00013698,2]
[404462304,1770157838474,-500.0,0.00013698,2]
[404462305,1770157838483,-500.0,0.00013698,2]
[404462306,1770157838492,-500.0,0.00013698,2]
[404462307,1770157838502,-500.0,0.00013698,2]
[404462308,1770157838511,-500.0,0.00013698,2]
[404462309,1770157838521,-500.0,0.00013698,2]
[404462310,1770157838531,-500.0,0.00013698,2]
[404462311,1770157838540,-500.0,0.00013698,2]
[404462312,1770157838550,-500.0,0.00013698,2]
[404462313,1770157838561,-500.0,0.00013698,2]
[404462314,1770157838571,-500.0,0.00013698,2]
[404462315,1770157838580,-500.0,0.00013698,2]
[404462316,1770157838590,-500.0,0.00013698,2]
[404462317,1770157838599,-500.0,0.00013698,2]
[404462318,1770157838609,-500.0,0.00013698,2]
[404462319,1770157838619,-500.0,0.00013698,2]
[404462320,1770157838632,-500.0,0.00013698,2]
[404462321,1770157838642,-500.0,0.00013698,2]
[404462322,1770157838652,-500.0,0.00013698,2]
[404462323,1770157838663,-500.0,0.00013698,2]
[404462324,1770157838672,-500.0,0.00013698,2]
[404462325,1770157838682,-373.00042525,0.00013698,2]
[404462326,1770157838692,-500.0,0.00013698,2]
[404462327,1770157838705,-500.0,0.00013698,2]
[404462328,1770157838715,-500.0,0.00013698,2]
[404462329,1770157838725,-500.0,0.00013698,2]
[404462330,1770157838735,-500.0,0.00013698,2]
[404462331,1770157838745,-500.0,0.00013698,2]
[404462332,1770157838755,-500.0,0.00013698,2]
[404462333,1770157838765,-500.0,0.00013698,2]
[404462334,1770157838775,-500.0,0.00013698,2]
[404462335,1770157838785,-436.31667928,0.00013698,2]
[404462336,1770157838796,-500.0,0.00013698,2]
[404462337,1770157838806,-154.17727181,0.00013698,2]
[404462338,1770157838817,-508.48,0.00013698,2]
[404462339,1770157838827,-508.48,0.00013698,2]
[404462340,1770157838836,-508.48,0.00013698,2]
[404462341,1770157838846,-508.48,0.00013698,2]
[404462342,1770157838856,-508.48,0.00013698,2]
[404462343,1770157838865,-508.48,0.00013698,2]
[404462344,1770157838877,-508.48,0.00013698,2]
[404462345,1770157838887,-508.48,0.00013698,2]
[404462346,1770157838896,-508.48,0.00013698,2]
[404462347,1770157838906,-508.48,0.00013698,2]
[404462348,1770157838916,-508.48,0.00013698,2]
[404462349,1770157838926,-508.48,0.00013698,2]
[404462350,1770157838935,-508.48,0.00013698,2]
[404462351,1770157838946,-508.48,0.00013698,2]
[404462352,1770157838955,-508.48,0.00013698,2]
[404462353,1770157838965,-508.48,0.00013698,2]
[404462354,1770157838974,-508.48,0.00013698,2]
[404462355,1770157838984,-508.48,0.00013698,2]
[404462356,1770157838993,-832.37,0.00013698,2]
[404462357,1770157839002,-508.48,0.00013698,2]
[404462358,1770157839011,-832.37,0.00013698,2]
[404462359,1770157839022,-508.48,0.00013698,2]
[404462360,1770157839032,-832.37,0.00013698,2]
[404462361,1770157839042,-508.48,0.00013698,2]
[404462362,1770157839051,-508.48,0.00013698,2]
[404462363,1770157839061,-832.37,0.00013698,2]
[404462364,1770157839070,-508.48,0.00013698,2]
[404462365,1770157839082,-832.37,0.00013698,2]
[404462366,1770157839091,-508.5960744,0.00013698,2]
[404462367,1770157839100,-832.37,0.00013698,2]
[404462368,1770157839110,-832.37,0.00013698,2]
[404462369,1770157839119,-832.37,0.00013698,2]
[404462370,1770157839129,-832.37,0.00013698,2]
[404462371,1770157839138,-832.37,0.00013698,2]
[404462372,1770157839147,-832.37,0.00013698,2]
[404462373,1770157839157,-832.37,0.00013698,2]
[404462374,1770157839167,-832.37,0.00013698,2]
[404462375,1770157839176,-832.37,0.00013698,2]
[404462376,1770157839186,-832.37,0.00013698,2]
[404462377,1770157839196,-832.37,0.00013698,2]
[404462378,1770157839206,-832.37,0.00013698,2]
[404462379,1770157839215,-832.37,0.00013698,2]
[404462380,1770157839224,-832.37,0.00013698,2]
[404462381,1770157839234,-832.37,0.00013698,2]
[404462382,1770157839243,-832.37,0.00013698,2]
[404462383,1770157839252,-832.37,0.00013698,2]
[404462384,1770157839262,-832.37,0.00013698,2]
[404462385,1770157839271,-832.37,0.00013698,2]
[404462386,1770157839281,-500.91,0.00013698,2]
[404462387,1770157839290,-500.0,0.00013698,2]
[404462388,1770157839300,-500.0,0.00013698,2]
[404462389,1770157839309,-595.81274949,0.00013698,2]
[404462390,1770157839318,-500.0,0.00013698,2]
[404462391,1770157839327,-500.0,0.00013698,2]
[404462392,1770157839336,-500.0,0.00013698,2]
[404462393,1770157839345,-500.0,0.00013698,2]
[404462394,1770157839354,-500.0,0.00013698,2]
[404462395,1770157839363,-500.0,0.00013698,2]
[404462396,1770157839374,-505.36940951,0.00013698,2]
[404462397,1770157839383,-500.0,0.00013698,2]
[404462398,1770157839392,-500.0,0.00013698,2]
[404462399,1770157839402,-500.0,0.00013698,2]
[404462400,1770157839411,-500.0,0.00013698,2]
[404462401,1770157839421,-500.0,0.00013698,2]
[404462402,1770157839431,-500.0,0.00013698,2]
[404462403,1770157839441,-500.0,0.00013698,2]
[404462404,1770157839451,-411.72693123,0.00013698,2]
[404462405,1770157839460,-527.84,0.00013698,2]
[404462406,1770157839469,-527.84,0.00013698,2]
[404462407,1770157839479,-527.84,0.00013698,2]
[404462409,1770157839488,-527.84,0.00013698,2]
[404462410,1770157839498,-527.84,0.00013698,2]
[404462411,1770157839507,-527.84,0.00013698,2]
[404462412,1770157839517,-527.84,0.00013698,2]
[404462413,1770157839526,-527.84,0.00013698,2]
[404462414,1770157839536,-527.84,0.00013698,2]
[404462415,1770157839545,-527.84,0.00013698,2]
[404462416,1770157839554,-527.84,0.00013698,2]
[404462417,1770157839563,-527.84,0.00013698,2]
[404462418,1770157839572,-527.84,0.00013698,2]
[404462419,1770157839582,-527.84,0.00013698,2]
[404462420,1770157839592,-527.84,0.00013698,2]
[404462421,1770157839602,-527.84,0.00013698,2]
[404462422,1770157839611,-527.84,0.00013698,2]
[404462423,1770157839621,-527.84,0.00013698,2]
[404462424,1770157839633,-527.84,0.00013698,2]
[404462425,1770157839642,-527.84,0.00013698,2]
[404462426,1770157839653,-527.84,0.00013698,2]
[404462427,1770157839663,-527.84,0.00013698,2]
[404462428,1770157839674,-527.84,0.00013698,2]
[404462429,1770157839683,-527.99942452,0.00013698,2]
[404462430,1770157839694,-200.0,0.00013699,2]
[404462431,1770157839705,-4974.74,0.000137,2]
[404462432,1770157839715,-4974.74,0.000137,2]
[404462433,1770157839726,-150.99,0.00013767,2]
[404462434,1770157839736,-500.91,0.00013972,2]
[404462435,1770157839746,-1500.0,0.00014,2]
[404462436,1770157839755,-1000.0,0.00014137,2]
[404462437,1770157839765,-44956.68910458,0.00014156,2]
[404462438,1770157839774,-2282.46026825,0.0001421,7]
[404462439,1770157839784,-500.91,0.00014246,2]
[404462440,1770157839794,-10332.61714049,0.0001439,2]
[404462441,1770157839803,-500.91,0.0001452,2]
[404462442,1770157839812,-500.91,0.00014794,2]
[404462443,1770157839822,-465.52954422,0.000149,2]
[404462444,1770157839832,-4974.74,0.0001498,2]
[404462445,1770157839841,-4974.74,0.0001499,2]
[404462446,1770157839851,-4974.74,0.0001499,2]
[404462447,1770157839862,-151.0,0.00014997,2]
[404462448,1770157839875,-2051.98803165,0.00015,2]
[404462449,1770157839885,-2141.537179,0.00015,14]
[404462450,1770157839895,-7988.62760331,0.00015,2]
[404462451,1770157839905,-694512.18762376,0.00015,3]
[404462452,1770157839914,-500.91,0.00015068,2]
[404462453,1770157839923,-181.06962449,0.00015142,2]
[404462454,1770157839933,-4375.3625532,0.00015152,2]
[404462455,1770157839943,-9999.99,0.00015152,2]
[404462456,1770157839952,-3464.76262511,0.00015223,2]
[404462457,1770157839961,-4687.947,0.00015223,2]
[404462458,1770157839971,-500.91,0.00015342,2]
[404462459,1770157839980,-1000.0,0.0001555,2]
[404462460,1770157839990,-500.91,0.00015616,2]
[404462461,1770157840000,-500.91,0.0001589,2]
[404462486,1770157840207,-173.83287322,0.000159,2]
[404462488,1770157840217,-13360.38514292,0.000159,2]
[404462490,1770157840227,-151.0,0.00015997,2]
[404462492,1770157840236,-1249859.8789502,0.00016,4]
[404462494,1770157840245,-160.0,0.00016,3]
[404462496,1770157840254,-3443.0,0.00016,2]
[404462498,1770157840263,-200.0,0.00016029,2]
[404462500,1770157840273,-187.22911548,0.00016116,2]
[404462502,1770157840282,-176.90288389,0.00016116,2]
[404462504,1770157840293,-151.0,0.00016116,2]
[404462506,1770157840302,-749.53,0.00016116,2]
[404462508,1770157840313,-500.91,0.00016164,2]
[404462510,1770157840322,-151.0,0.00016197,2]
[404462512,1770157840331,-590955.5469905,0.000162,5]
[404462514,1770157840340,-13360.3851429,0.000163,2]
[404462516,1770157840350,-839.0,0.000164,2]
[404462518,1770157840359,-839.0,0.000164,2]
[404462520,1770157840369,-500.0,0.00016438,2]
[404462522,1770157840380,-500.0,0.00016438,2]
[404462524,1770157840389,-235.22102486,0.00016438,2]
[404462526,1770157840398,-500.91,0.00016438,2]
[404462528,1770157840407,-900.0,0.00016438,2]
[404462530,1770157840416,-559.24,0.00016438,2]
[404462532,1770157840425,-227.27,0.00016438,2]
[404462534,1770157840434,-151.0,0.00016438,2]
[404462536,1770157840443,-370.340611,0.00016438,2]
[404462538,1770157840452,-370.340611,0.00016438,2]
[404462540,1770157840461,-370.340611,0.00016438,2]
[404462542,1770157840469,-370.340611,0.00016438,2]
[404462544,1770157840478,-370.340611,0.00016438,2]
[404462546,1770157840490,-370.340611,0.00016438,2]
[404462548,1770157840500,-370.340611,0.00016438,2]
[404462549,1770157840509,-370.340611,0.00016438,2]
[404462552,1770157840519,-1000.0,0.00016438,2]
[404462554,1770157840529,-500.92,0.00016462,2]
[404462556,1770157840538,-500.0,0.00016462,2]
[404462558,1770157840547,-465.94256548,0.00016491,2]
[404462559,1770157840556,-190.19209598,0.00016491,2]
[404462561,1770157840565,-1000.0,0.00016515,2]
[404462563,1770157840575,-727.682145,0.00016575,2]
[404462565,1770157840584,-727.682145,0.00016575,2]
[404462567,1770157840593,-727.682145,0.00016575,2]
[404462569,1770157840603,-727.682145,0.00016575,2]
[404462571,1770157840612,-727.682145,0.00016575,2]
[404462573,1770157840624,-727.682145,0.00016575,2]
[404462575,1770157840633,-727.682145,0.00016575,2]
[404462577,1770157840643,-727.682145,0.00016575,2]
[404462579,1770157840652,-181700.1683338,0.00016591,2]
[404462581,1770157840663,-151.0,0.00016591,2]
[404462583,1770157840672,-151.0,0.00016591,2]
[404462585,1770157840681,-300.0,0.00016591,3]
[404462587,1770157840690,-300.0,0.00016591,3]
[404462589,1770157840700,-300.0,0.00016591,3]
[404462591,1770157840709,-300.0,0.00016591,3]
[404462593,1770157840719,-300.0,0.00016591,3]
[404462595,1770157840729,-727.682145,0.00016591,2]
[404462597,1770157840738,-727.682145,0.00016591,2]
[404462599,1770157840747,-727.682145,0.00016591,2]
[404462601,1770157840757,-727.682145,0.00016591,2]
[404462603,1770157840766,-4375.3625532,0.00016606,2]
[404462605,1770157840775,-322.6107,0.00016614,2]
[404462607,1770157840784,-209.40437684,0.00016614,2]
[404462609,1770157840793,-209.40437684,0.00016614,2]
[404462611,1770157840802,-500.0,0.00016614,2]
[404462613,1770157840812,-500.0,0.00016614,2]
[404462615,1770157840822,-500.0,0.00016614,2]
[404462617,1770157840831,-500.0,0.00016614,2]
[404462619,1770157840840,-500.0,0.00016614,2]
[404462621,1770157840849,-500.0,0.00016614,2]
[404462623,1770157840859,-500.0,0.00016614,2]
[404462625,1770157840868,-500.0,0.00016614,2]
[404462627,1770157840878,-500.0,0.00016614,2]
[404462629,1770157840887,-500.0,0.00016614,2]
[404462631,1770157840897,-500.0,0.00016614,2]
[404462633,1770157840906,-200.0,0.00016614,2]
[404462635,1770157840914,-163.12428816,0.00016614,2]
[404462637,1770157840924,-174.61919141,0.00016614,2]
[404462639,1770157840933,-209.40437684,0.00016614,2]
[404462641,1770157840942,-277.35679052,0.00016614,2]
[404462643,1770157840951,-721.12765535,0.00016614,2]
[404462645,1770157840960,-1428.38747117,0.00016614,2]
[404462647,1770157840969,-578.20924308,0.00016614,2]
[404462649,1770157840978,-217.15233878,0.00016669,2]
[404462651,1770157840987,-13360.3851429,0.000167,2]
[404462653,1770157840996,-500.91,0.00016712,2]
[404462655,1770157841006,-1000.0,0.00016712,2]
[404462657,1770157841014,-165.72,0.00016712,2]
[404462659,1770157841023,-839.0,0.0001672,2]
[404462661,1770157841032,-839.0,0.0001672,2]
[404462663,1770157841042,-839.0,0.0001672,2]
[404462665,1770157841050,-225.18697532,0.00016724,2]
[404462667,1770157841059,-500.0,0.0001673,2]
[404462670,1770157841072,-500.87599875,0.0001673,2]
[404462672,1770157841081,-163.3987975,0.0001673,2]
[404462674,1770157841090,-500.64906369,0.0001673,2]
[404462676,1770157841099,-500.0,0.0001673,2]
[404462678,1770157841108,-500.0,0.0001673,2]
[404462680,1770157841117,-500.0,0.0001673,2]
[404462681,1770157841126,-500.0,0.0001673,2]
[404462683,1770157841135,-500.0,0.0001673,2]
[404462685,1770157841144,-500.0,0.0001673,2]
[404462687,1770157841154,-163.17509368,0.0001673,2]
[404462689,1770157841163,-500.0,0.0001673,2]
[404462691,1770157841172,-500.86578537,0.0001673,2]
[404462693,1770157841181,-500.5484423,0.0001673,2]
[404462695,1770157841190,-151.14630637,0.0001673,2]
[404462697,1770157841199,-160.59346799,0.0001673,2]
[404462699,1770157841208,-336.54043912,0.0001673,2]
[404462701,1770157841217,-500.58962074,0.0001673,2]
[404462703,1770157841228,-500.0,0.0001673,2]
[404462705,1770157841237,-500.0,0.0001673,2]
[404462707,1770157841247,-193.42410424,0.0001673,2]
[404462708,1770157841256,-574.23426671,0.0001673,2]
[404462709,1770157841268,-500.0,0.0001673,2]
[404462710,1770157841277,-500.0,0.0001673,2]
[404462711,1770157841287,-500.27732573,0.0001673,2]
[404462712,1770157841296,-500.0,0.0001673,2]
[404462713,1770157841305,-500.0,0.0001673,2]
[404462714,1770157841315,-500.0,0.0001673,2]
[404462715,1770157841325,-500.81916532,0.0001673,2]
[404462716,1770157841334,-200.90009189,0.0001673,2]
[404462717,1770157841343,-500.0,0.0001673,2]
[404462718,1770157841353,-500.0,0.0001673,2]
[404462720,1770157841363,-464.55637518,0.0001673,2]
[404462721,1770157841373,-500.93680817,0.0001673,2]
[404462723,1770157841382,-501.66558046,0.0001673,2]
[404462725,1770157841391,-500.0,0.0001673,2]
[404462727,1770157841400,-505.54148185,0.0001673,2]
[404462729,1770157841409,-500.0,0.0001673,2]
[404462731,1770157841419,-501.55601452,0.0001673,2]
[404462733,1770157841428,-500.0,0.0001673,2]
[404462735,1770157841438,-500.0,0.0001673,2]
[404462737,1770157841447,-233.51889341,0.00016779,2]
[404462739,1770157841456,-242.15909246,0.00016834,2]
[404462741,1770157841468,-251.11897888,0.00016889,2]
[404462744,1770157841478,-173.83287322,0.000169,2]
[404462745,1770157841487,-260.4103811,0.00016944,2]
[404462747,1770157841497,-5621.0,0.00016945,2]
[404462749,1770157841506,-3207.0,0.00016947,2]
[404462751,1770157841516,-1000.0,0.00016964,2]
[404462754,1770157841525,-500.91,0.00016986,2]
[404462756,1770157841535,-1000.0,0.00016986,2]
[404462758,1770157841544,-3207.0,0.00016997,2]
[404462760,1770157841554,-270.0455652,0.00016999,2]
[404462762,1770157841563,-300.0,0.00017,2]
[404462764,1770157841572,-46384.30210169,0.00017,2]
[404462765,1770157841582,-1160.044118,0.00017,2]
[404462767,1770157841591,-1160.044118,0.00017,2]
[404462769,1770157841601,-1160.044118,0.00017,2]
[404462771,1770157841610,-1160.044118,0.00017,2]
[404462773,1770157841619,-151.0,0.00017,2]
[404462775,1770157841634,-151.0,0.00017,2]
[404462777,1770157841644,-151.0,0.00017,2]
[404462779,1770157841653,-3207.0,0.00017039,2]
[404462782,1770157841666,-2836.0,0.0001704,2]
[404462784,1770157841675,-316.0,0.0001704,2]
[404462786,1770157841685,-2836.0,0.0001704,2]
[404462787,1770157841694,-839.0,0.0001704,2]
[404462790,1770157841706,-839.0,0.0001704,2]
[404462791,1770157841716,-1142.0,0.0001704,2]
[404462794,1770157841726,-280.03725112,0.00017054,2]
[404462796,1770157841735,-5621.0,0.00017059,2]
[404462798,1770157841745,-5621.0,0.00017091,2]
[404462800,1770157841754,-416.88623134,0.00017099,2]
[404462802,1770157841764,-396.55979187,0.00017099,2]
[404462804,1770157841773,-13360.3851429,0.000171,2]
[404462805,1770157841782,-290.39862941,0.00017109,2]
[404462808,1770157841791,-1000.0,0.00017112,2]
[404462809,1770157841801,-5888.0,0.00017115,2]
[404462811,1770157841810,-217.15233878,0.00017162,2]
[404462814,1770157841820,-217.15233878,0.00017162,2]
[404462816,1770157841829,-200.0,0.00017162,2]
[404462818,1770157841839,-181.08010149,0.00017162,2]
[404462820,1770157841848,-287.61899177,0.00017162,2]
[404462822,1770157841857,-1481.23780761,0.00017162,2]
[404462824,1770157841868,-5621.0,0.00017163,2]
[404462826,1770157841879,-301.1433787,0.00017164,2]
[404462828,1770157841889,-465.94256547,0.00017196,2]
[404462830,1770157841898,-500.91,0.0001726,2]
[404462832,1770157841907,-1000.0,0.0001726,2]
[404462834,1770157841916,-15467.0,0.00017272,2]
[404462836,1770157841925,-1000.0,0.00017278,2]
[404462838,1770157841934,-500.7588569,0.00017278,2]
[404462840,1770157841943,-1000.0,0.00017278,2]
[404462842,1770157841953,-335.67208162,0.00017278,2]
[404462844,1770157841962,-1000.0,0.00017278,2]
[404462846,1770157841971,-1138.52784923,0.00017278,2]
[404462848,1770157841980,-500.61825872,0.00017278,2]